[Event "January 2 Late 2024"]
[Site "https://www.chess.com"]
[Date "2024.01.02"]
[Round "9"]
[White "Gubajdullin, Alexei"]
[Black "Tikhonov, Viacheslav"]
[Result "1-0"]
[Board "69"]
[TimeControl "180+1"]
[WhiteFideId "4141202"]
[BlackFideId "44196407"]
[WhiteElo "2608"]
[BlackElo "2484"]
[WhiteTeam "RUS"]
[BlackTeam "RUS"]
[WhiteClock "0:00:41"]
[BlackClock "0:00:00"]

1. d4 {[%clk 0:02:59]}  Nf6 {[%clk 0:03:00]} 2. Nf3 {[%clk 0:02:58]}  d5 {[%clk 0:03:00]} 3. Bf4 {[%clk 0:02:58]}  e6 {[%clk 0:02:54]} 4. e3 {[%clk 0:02:58]}  Bd6 {[%clk 0:02:53]} 5. Bxd6 {[%clk 0:02:58]}  Qxd6 {[%clk 0:02:54]} 6. Nbd2 {[%clk 0:02:58]}  c5 {[%clk 0:02:54]} 7. c4 {[%clk 0:02:56]}  cxd4 {[%clk 0:02:48]} 8. Nxd4 {[%clk 0:02:56]}  Nc6 {[%clk 0:02:44]} 9. Nb5 {[%clk 0:02:51]}  Qe7 {[%clk 0:02:33]} 10. cxd5 {[%clk 0:02:49]}  exd5 {[%clk 0:02:30]} 11. Be2 {[%clk 0:02:44]}  a6 {[%clk 0:02:27]} 12. Nd4 {[%clk 0:02:40]}  Nxd4 {[%clk 0:02:27]} 13. exd4 {[%clk 0:02:40]}  O-O {[%clk 0:02:27]} 14. O-O {[%clk 0:02:40]}  Bf5 {[%clk 0:02:24]} 15. Nb3 {[%clk 0:02:29]}  Rfe8 {[%clk 0:02:20]} 16. Bf3 {[%clk 0:02:23]}  h6 {[%clk 0:02:19]} 17. Re1 {[%clk 0:02:17]}  Qb4 {[%clk 0:02:17]} 18. Qd2 {[%clk 0:02:16]}  Qxd2 {[%clk 0:02:13]} 19. Nxd2 {[%clk 0:02:16]}  Rxe1+ {[%clk 0:02:11]} 20. Rxe1 {[%clk 0:02:15]}  Rc8 {[%clk 0:02:12]} 21. Nb3 {[%clk 0:02:13]}  Rc2 {[%clk 0:02:08]} 22. Re2 {[%clk 0:02:12]}  Rxe2 {[%clk 0:01:56]} 23. Bxe2 {[%clk 0:02:12]}  Kf8 {[%clk 0:01:51]} 24. Nc5 {[%clk 0:02:10]}  Bc8 {[%clk 0:01:51]} 25. a4 {[%clk 0:02:08]}  a5 {[%clk 0:01:47]} 26. f3 {[%clk 0:01:59]}  b6 {[%clk 0:01:46]} 27. Nd3 {[%clk 0:01:48]}  Ba6 {[%clk 0:01:45]} 28. Nf4 {[%clk 0:01:48]}  Bxe2 {[%clk 0:01:45]} 29. Nxe2 {[%clk 0:01:48]}  Ke7 {[%clk 0:01:45]} 30. Kf2 {[%clk 0:01:47]}  Kd6 {[%clk 0:01:42]} 31. h4 {[%clk 0:01:46]}  g5 {[%clk 0:01:32]} 32. Ng3 {[%clk 0:01:33]}  Ke6 {[%clk 0:01:30]} 33. hxg5 {[%clk 0:01:31]}  hxg5 {[%clk 0:01:31]} 34. Ke3 {[%clk 0:01:30]}  Ne8 {[%clk 0:01:28]} 35. b3 {[%clk 0:01:29]}  Nd6 {[%clk 0:01:26]} 36. Ne2 {[%clk 0:01:27]}  Nf5+ {[%clk 0:01:23]} 37. Kd3 {[%clk 0:01:27]}  Nh4 {[%clk 0:01:23]} 38. f4 {[%clk 0:01:24]}  Nxg2 {[%clk 0:01:03]} 39. fxg5 {[%clk 0:01:23]}  Kf5 {[%clk 0:01:03]} 40. Nc3 {[%clk 0:01:10]}  Nf4+ {[%clk 0:01:03]} 41. Ke3 {[%clk 0:01:10]}  Kxg5 {[%clk 0:01:03]} 42. Nb5 {[%clk 0:01:10]}  f5 {[%clk 0:00:47]} 43. Nc7 {[%clk 0:01:09]}  Kg4 {[%clk 0:00:44]} 44. Na8 {[%clk 0:01:06]}  Kg3 {[%clk 0:00:35]} 45. Nxb6 {[%clk 0:01:05]}  Ng2+ {[%clk 0:00:35]} 46. Kd2 {[%clk 0:00:56]}  f4 {[%clk 0:00:35]} 47. Nxd5 {[%clk 0:00:56]}  f3 {[%clk 0:00:33]} 48. Nc3 {[%clk 0:00:56]}  Nf4 {[%clk 0:00:22]} 49. d5 {[%clk 0:00:51]}  f2 {[%clk 0:00:16]} 50. Ne4+ {[%clk 0:00:51]}  Kg2 {[%clk 0:00:14]} 51. Nxf2 {[%clk 0:00:50]}  Kxf2 {[%clk 0:00:15]} 52. d6 {[%clk 0:00:49]}  Kf3 {[%clk 0:00:12]} 53. b4 {[%clk 0:00:49]}  axb4 {[%clk 0:00:10]} 54. a5 {[%clk 0:00:48]}  b3 {[%clk 0:00:09]} 55. d7 {[%clk 0:00:43]}  Ne6 {[%clk 0:00:07]} 56. a6 {[%clk 0:00:42]}  b2 {[%clk 0:00:02]} 57. Kc2 {[%clk 0:00:41]}  Ke4 {[%clk 0:00:00]} 58. a7 {[%clk 0:00:41]} 1-0

[Event "January 2 Late 2024"]
[Site "https://www.chess.com"]
[Date "2024.01.02"]
[Round "9"]
[White "Petre, Nad-Titus"]
[Black "Zavgorodniy, Sergiy"]
[Result "0-1"]
[Board "70"]
[TimeControl "180+1"]
[WhiteFideId "1204165"]
[BlackFideId "14110148"]
[WhiteElo "2480"]
[BlackElo "2600"]
[WhiteTeam "ROU"]
[BlackTeam "UKR"]
[WhiteClock "0:00:16"]
[BlackClock "0:01:56"]

1. e4 {[%clk 0:03:00]}  c6 {[%clk 0:02:59]} 2. d4 {[%clk 0:02:58]}  d5 {[%clk 0:03:00]} 3. exd5 {[%clk 0:02:59]}  cxd5 {[%clk 0:03:00]} 4. Bd3 {[%clk 0:03:00]}  Nc6 {[%clk 0:02:59]} 5. c3 {[%clk 0:02:58]}  Qc7 {[%clk 0:03:00]} 6. Ne2 {[%clk 0:02:57]}  Bg4 {[%clk 0:02:59]} 7. O-O {[%clk 0:02:58]}  Bh5 {[%clk 0:02:58]} 8. Qe1 {[%clk 0:02:54]}  e6 {[%clk 0:02:57]} 9. Na3 {[%clk 0:02:52]}  a6 {[%clk 0:02:57]} 10. Nc2 {[%clk 0:02:52]}  Bg6 {[%clk 0:02:57]} 11. Bf4 {[%clk 0:02:42]}  Bd6 {[%clk 0:02:56]} 12. Bxd6 {[%clk 0:02:42]}  Qxd6 {[%clk 0:02:57]} 13. Nc1 {[%clk 0:02:40]}  Nf6 {[%clk 0:02:55]} 14. Qe2 {[%clk 0:02:35]}  O-O {[%clk 0:02:54]} 15. a4 {[%clk 0:02:36]}  Rab8 {[%clk 0:02:53]} 16. a5 {[%clk 0:02:30]}  Qc7 {[%clk 0:02:51]} 17. b4 {[%clk 0:02:14]}  Ne7 {[%clk 0:02:50]} 18. Ra3 {[%clk 0:02:13]}  Rbc8 {[%clk 0:02:48]} 19. Bxg6 {[%clk 0:02:07]}  Nxg6 {[%clk 0:02:47]} 20. Nd3 {[%clk 0:02:08]}  Ne4 {[%clk 0:02:44]} 21. Nc5 {[%clk 0:02:04]}  Nd6 {[%clk 0:02:43]} 22. g3 {[%clk 0:01:57]}  Nc4 {[%clk 0:02:43]} 23. Rb3 {[%clk 0:01:53]}  Ne7 {[%clk 0:02:42]} 24. Ne3 {[%clk 0:01:53]}  Nxe3 {[%clk 0:02:37]} 25. Qxe3 {[%clk 0:01:53]}  Nf5 {[%clk 0:02:37]} 26. Qe2 {[%clk 0:01:47]}  Nd6 {[%clk 0:02:37]} 27. h4 {[%clk 0:01:40]}  Nc4 {[%clk 0:02:37]} 28. f4 {[%clk 0:01:35]}  Rfe8 {[%clk 0:02:35]} 29. Kg2 {[%clk 0:01:34]}  Ra8 {[%clk 0:02:34]} 30. Rbb1 {[%clk 0:01:33]}  b6 {[%clk 0:02:32]} 31. axb6 {[%clk 0:01:32]}  Qxb6 {[%clk 0:02:33]} 32. h5 {[%clk 0:01:26]}  h6 {[%clk 0:02:32]} 33. g4 {[%clk 0:01:26]}  a5 {[%clk 0:02:31]} 34. g5 {[%clk 0:01:26]}  axb4 {[%clk 0:02:17]} 35. Rxb4 {[%clk 0:01:26]}  Qa5 {[%clk 0:02:12]} 36. Rf2 {[%clk 0:01:24]}  Qa1 {[%clk 0:02:10]} 37. Rb7 {[%clk 0:01:11]}  Qxc3 {[%clk 0:02:07]} 38. g6 {[%clk 0:01:10]}  fxg6 {[%clk 0:02:02]} 39. Nxe6 {[%clk 0:01:10]}  Ne3+ {[%clk 0:02:01]} 40. Kh2 {[%clk 0:00:26]}  Rxe6 {[%clk 0:01:59]} 41. hxg6 {[%clk 0:00:16]}  Rxg6 {[%clk 0:01:56]} 0-1

[Event "January 2 Late 2024"]
[Site "https://www.chess.com"]
[Date "2024.01.02"]
[Round "9"]
[White "Zomorrodian, Eilia"]
[Black "Mizzi, Jack"]
[Result "1-0"]
[Board "71"]
[TimeControl "180+1"]
[WhiteFideId "12551805"]
[BlackFideId "5602521"]
[WhiteElo "2595"]
[BlackElo "2464"]
[WhiteTeam "CAN"]
[BlackTeam "MLT"]
[WhiteClock "0:01:09"]
[BlackClock "0:00:00"]

1. e4 {[%clk 0:03:00]}  c6 {[%clk 0:02:57]} 2. d4 {[%clk 0:02:57]}  d5 {[%clk 0:02:58]} 3. exd5 {[%clk 0:02:57]}  cxd5 {[%clk 0:02:58]} 4. c4 {[%clk 0:02:58]}  dxc4 {[%clk 0:02:55]} 5. Bxc4 {[%clk 0:02:57]}  e6 {[%clk 0:02:56]} 6. Nf3 {[%clk 0:02:57]}  Nf6 {[%clk 0:02:55]} 7. Nc3 {[%clk 0:02:57]}  a6 {[%clk 0:02:53]} 8. a3 {[%clk 0:02:52]}  b5 {[%clk 0:02:53]} 9. Ba2 {[%clk 0:02:53]}  Be7 {[%clk 0:02:47]} 10. O-O {[%clk 0:02:51]}  O-O {[%clk 0:02:45]} 11. Ne5 {[%clk 0:02:51]}  Bb7 {[%clk 0:02:44]} 12. Re1 {[%clk 0:02:52]}  Nc6 {[%clk 0:02:42]} 13. Be3 {[%clk 0:02:44]}  b4 {[%clk 0:02:30]} 14. Na4 {[%clk 0:02:32]}  bxa3 {[%clk 0:02:11]} 15. bxa3 {[%clk 0:02:33]}  Nd5 {[%clk 0:02:05]} 16. Rb1 {[%clk 0:02:22]}  Nxe3 {[%clk 0:01:45]} 17. fxe3 {[%clk 0:02:06]}  Nxe5 {[%clk 0:01:26]} 18. Rxb7 {[%clk 0:02:05]}  Ng6 {[%clk 0:01:21]} 19. Nb6 {[%clk 0:01:56]}  Bh4 {[%clk 0:00:58]} 20. Rf1 {[%clk 0:01:48]}  Qg5 {[%clk 0:00:18]} 21. Qf3 {[%clk 0:01:46]}  Rad8 {[%clk 0:00:07]} 22. Nd7 {[%clk 0:01:26]}  f5 {[%clk 0:00:05]} 23. Bxe6+ {[%clk 0:01:19]}  Kh8 {[%clk 0:00:05]} 24. Nxf8 {[%clk 0:01:19]}  Rxf8 {[%clk 0:00:05]} 25. d5 {[%clk 0:01:11]}  Ne5 {[%clk 0:00:00]} 26. Qf4 {[%clk 0:01:09]} 1-0

[Event "January 2 Late 2024"]
[Site "https://www.chess.com"]
[Date "2024.01.02"]
[Round "9"]
[White "Dobrijevic, Milan"]
[Black "Gontcharov, Vladislav"]
[Result "1-0"]
[Board "72"]
[TimeControl "180+1"]
[WhiteFideId "931632"]
[BlackFideId "4123492"]
[WhiteElo "2452"]
[BlackElo "2593"]
[WhiteTeam "SRB"]
[BlackTeam "RUS"]
[WhiteClock "0:00:07"]
[BlackClock "0:00:00"]

1. e4 {[%clk 0:02:59]}  e6 {[%clk 0:02:59]} 2. d4 {[%clk 0:02:59]}  d5 {[%clk 0:02:58]} 3. Nc3 {[%clk 0:02:59]}  Nc6 {[%clk 0:02:57]} 4. Nf3 {[%clk 0:02:58]}  Nf6 {[%clk 0:02:56]} 5. Bg5 {[%clk 0:02:54]}  Be7 {[%clk 0:02:55]} 6. e5 {[%clk 0:02:51]}  Ne4 {[%clk 0:02:48]} 7. Bxe7 {[%clk 0:02:50]}  Qxe7 {[%clk 0:02:45]} 8. Bd3 {[%clk 0:02:41]}  Nxc3 {[%clk 0:02:42]} 9. bxc3 {[%clk 0:02:42]}  Bd7 {[%clk 0:02:41]} 10. O-O {[%clk 0:02:30]}  Na5 {[%clk 0:02:40]} 11. Qe2 {[%clk 0:02:27]}  O-O {[%clk 0:02:28]} 12. Nd2 {[%clk 0:02:24]}  c5 {[%clk 0:02:21]} 13. Nb3 {[%clk 0:02:07]}  b6 {[%clk 0:02:11]} 14. dxc5 {[%clk 0:01:56]}  Nxb3 {[%clk 0:02:10]} 15. cxb3 {[%clk 0:01:51]}  Qxc5 {[%clk 0:02:10]} 16. Rac1 {[%clk 0:01:49]}  a5 {[%clk 0:02:00]} 17. c4 {[%clk 0:01:49]}  d4 {[%clk 0:01:59]} 18. Rfd1 {[%clk 0:01:46]}  g6 {[%clk 0:01:58]} 19. Be4 {[%clk 0:01:44]}  Rad8 {[%clk 0:01:57]} 20. f4 {[%clk 0:01:37]}  a4 {[%clk 0:01:51]} 21. Rd3 {[%clk 0:01:35]}  axb3 {[%clk 0:01:51]} 22. axb3 {[%clk 0:01:36]}  b5 {[%clk 0:01:47]} 23. Qf2 {[%clk 0:01:26]}  Be8 {[%clk 0:01:21]} 24. h4 {[%clk 0:01:22]}  f6 {[%clk 0:01:06]} 25. exf6 {[%clk 0:01:19]}  Rxf6 {[%clk 0:01:06]} 26. g3 {[%clk 0:01:16]}  e5 {[%clk 0:01:03]} 27. Rf3 {[%clk 0:01:11]}  bxc4 {[%clk 0:00:54]} 28. Rxc4 {[%clk 0:01:09]}  Qe7 {[%clk 0:00:52]} 29. fxe5 {[%clk 0:01:04]}  Rxf3 {[%clk 0:00:51]} 30. Qxf3 {[%clk 0:00:54]}  Bf7 {[%clk 0:00:51]} 31. Rc6 {[%clk 0:00:43]}  Qxe5 {[%clk 0:00:49]} 32. Rf6 {[%clk 0:00:42]}  Be6 {[%clk 0:00:36]} 33. Bd3 {[%clk 0:00:42]}  Kg7 {[%clk 0:00:23]} 34. Rf4 {[%clk 0:00:41]}  Bxb3 {[%clk 0:00:19]} 35. Qb7+ {[%clk 0:00:40]}  Kh6 {[%clk 0:00:14]} 36. Qxb3 {[%clk 0:00:40]}  Qe1+ {[%clk 0:00:08]} 37. Kh2 {[%clk 0:00:38]}  Rc8 {[%clk 0:00:06]} 38. Bf1 {[%clk 0:00:28]}  Rc3 {[%clk 0:00:05]} 39. Qf7 {[%clk 0:00:15]}  Qxg3+ {[%clk 0:00:05]} 40. Kh1 {[%clk 0:00:15]}  Rc2 {[%clk 0:00:03]} 41. Qf8+ {[%clk 0:00:10]}  Kh5 {[%clk 0:00:02]} 42. Rf5+ {[%clk 0:00:08]}  gxf5 {[%clk 0:00:02]} 43. Qxf5+ {[%clk 0:00:08]}  Kxh4 {[%clk 0:00:00]} 44. Qxc2 {[%clk 0:00:07]} 1-0

[Event "January 2 Late 2024"]
[Site "https://www.chess.com"]
[Date "2024.01.02"]
[Round "9"]
[White "Asish Panda"]
[Black "Seletsky, Grigory"]
[Result "1-0"]
[Board "73"]
[TimeControl "180+1"]
[WhiteFideId "45012458"]
[BlackFideId "14112191"]
[WhiteElo "2561"]
[BlackElo "2436"]
[WhiteTeam "IND"]
[BlackTeam "UKR"]
[WhiteClock "0:01:17"]
[BlackClock "0:00:48"]

1. e4 {[%clk 0:03:00]}  e6 {[%clk 0:02:54]} 2. Nf3 {[%clk 0:03:00]}  d5 {[%clk 0:02:53]} 3. Nc3 {[%clk 0:03:01]}  Nf6 {[%clk 0:02:52]} 4. e5 {[%clk 0:02:59]}  Nfd7 {[%clk 0:02:53]} 5. d4 {[%clk 0:02:59]}  c5 {[%clk 0:02:53]} 6. dxc5 {[%clk 0:03:00]}  Nc6 {[%clk 0:02:53]} 7. Bf4 {[%clk 0:03:00]}  Nxc5 {[%clk 0:02:52]} 8. Bd3 {[%clk 0:03:00]}  Be7 {[%clk 0:02:50]} 9. Qe2 {[%clk 0:02:59]}  Nb4 {[%clk 0:02:46]} 10. Bb5+ {[%clk 0:02:52]}  Bd7 {[%clk 0:02:44]} 11. Bxd7+ {[%clk 0:02:52]}  Qxd7 {[%clk 0:02:45]} 12. a3 {[%clk 0:02:52]}  Nc6 {[%clk 0:02:42]} 13. O-O {[%clk 0:02:51]}  Qc8 {[%clk 0:02:16]} 14. Rad1 {[%clk 0:02:40]}  O-O {[%clk 0:02:15]} 15. h4 {[%clk 0:02:32]}  a6 {[%clk 0:02:14]} 16. h5 {[%clk 0:02:32]}  b5 {[%clk 0:02:09]} 17. h6 {[%clk 0:02:25]}  g6 {[%clk 0:02:09]} 18. Bg5 {[%clk 0:02:23]}  Qc7 {[%clk 0:02:05]} 19. Qe3 {[%clk 0:02:16]}  Bxg5 {[%clk 0:02:00]} 20. Qxg5 {[%clk 0:02:08]}  Qe7 {[%clk 0:01:57]} 21. Qf4 {[%clk 0:02:03]}  Rac8 {[%clk 0:01:56]} 22. Nh2 {[%clk 0:01:51]}  Nd7 {[%clk 0:01:27]} 23. Ng4 {[%clk 0:01:46]}  f6 {[%clk 0:01:25]} 24. exf6 {[%clk 0:01:45]}  Nxf6 {[%clk 0:01:25]} 25. Rfe1 {[%clk 0:01:42]}  Ne4 {[%clk 0:01:16]} 26. Qe3 {[%clk 0:01:28]}  Nxc3 {[%clk 0:01:09]} 27. bxc3 {[%clk 0:01:29]}  Rce8 {[%clk 0:00:55]} 28. Ne5 {[%clk 0:01:25]}  Nxe5 {[%clk 0:00:51]} 29. Qxe5 {[%clk 0:01:26]}  Rf5 {[%clk 0:00:50]} 30. Qd4 {[%clk 0:01:18]}  Qg5 {[%clk 0:00:48]} 31. Qg7# {[%clk 0:01:17]} 1-0

[Event "January 2 Late 2024"]
[Site "https://www.chess.com"]
[Date "2024.01.02"]
[Round "9"]
[White "Khodabandeh, Milad"]
[Black "RaugintaBulba"]
[Result "0-1"]
[Board "74"]
[TimeControl "180+1"]
[WhiteFideId "12538620"]
[WhiteElo "2398"]
[BlackElo "2544"]
[WhiteTeam "IRI"]
[WhiteClock "0:00:00"]
[BlackClock "0:00:09"]

1. e4 {[%clk 0:02:31]}  c5 {[%clk 0:02:58]} 2. Nf3 {[%clk 0:02:31]}  e6 {[%clk 0:02:58]} 3. d4 {[%clk 0:02:32]}  cxd4 {[%clk 0:02:59]} 4. Nxd4 {[%clk 0:02:32]}  a6 {[%clk 0:03:00]} 5. Nc3 {[%clk 0:02:29]}  b5 {[%clk 0:02:59]} 6. a4 {[%clk 0:02:22]}  b4 {[%clk 0:02:57]} 7. Nce2 {[%clk 0:02:22]}  Bb7 {[%clk 0:02:57]} 8. Ng3 {[%clk 0:02:22]}  Qc7 {[%clk 0:02:47]} 9. Bd3 {[%clk 0:02:18]}  Nc6 {[%clk 0:02:44]} 10. Nxc6 {[%clk 0:02:13]}  Bxc6 {[%clk 0:02:45]} 11. O-O {[%clk 0:02:13]}  Nf6 {[%clk 0:02:39]} 12. Qe2 {[%clk 0:02:13]}  d5 {[%clk 0:02:32]} 13. exd5 {[%clk 0:01:40]}  Nxd5 {[%clk 0:02:33]} 14. Bxa6 {[%clk 0:01:39]}  h5 {[%clk 0:01:56]} 15. Bb5 {[%clk 0:01:35]}  h4 {[%clk 0:01:54]} 16. Nf5 {[%clk 0:01:30]}  h3 {[%clk 0:01:50]} 17. Nd4 {[%clk 0:01:16]}  Bd7 {[%clk 0:01:42]} 18. Nxe6 {[%clk 0:01:05]}  fxe6 {[%clk 0:01:40]} 19. Qxe6+ {[%clk 0:01:04]}  Ne7 {[%clk 0:01:37]} 20. Bf4 {[%clk 0:00:59]}  Qb7 {[%clk 0:01:26]} 21. Bxd7+ {[%clk 0:00:35]}  Qxd7 {[%clk 0:01:24]} 22. Qxd7+ {[%clk 0:00:28]}  Kxd7 {[%clk 0:01:25]} 23. Rfd1+ {[%clk 0:00:24]}  Ke8 {[%clk 0:01:22]} 24. g3 {[%clk 0:00:17]}  Rh5 {[%clk 0:01:19]} 25. b3 {[%clk 0:00:12]}  Rc5 {[%clk 0:01:18]} 26. Rd2 {[%clk 0:00:12]}  Ng6 {[%clk 0:01:15]} 27. Re1+ {[%clk 0:00:10]}  Kf7 {[%clk 0:01:14]} 28. Be3 {[%clk 0:00:08]}  Ne5 {[%clk 0:00:59]} 29. Bxc5 {[%clk 0:00:05]}  Nf3+ {[%clk 0:00:59]} 30. Kh1 {[%clk 0:00:05]}  Nxd2 {[%clk 0:00:53]} 31. Bxf8 {[%clk 0:00:05]}  Rxf8 {[%clk 0:00:44]} 32. f4 {[%clk 0:00:04]}  Rc8 {[%clk 0:00:35]} 33. Ra1 {[%clk 0:00:03]}  Rxc2 {[%clk 0:00:32]} 34. Kg1 {[%clk 0:00:03]}  Nf3+ {[%clk 0:00:31]} 35. Kf1 {[%clk 0:00:04]}  Kf6 {[%clk 0:00:31]} 36. a5 {[%clk 0:00:02]}  Kf5 {[%clk 0:00:32]} 37. a6 {[%clk 0:00:03]}  Ke4 {[%clk 0:00:31]} 38. a7 {[%clk 0:00:03]}  Ke3 {[%clk 0:00:32]} 39. Re1+ {[%clk 0:00:02]}  Nxe1 {[%clk 0:00:32]} 40. a8=Q {[%clk 0:00:03]}  Nf3 {[%clk 0:00:24]} 41. Qa7+ {[%clk 0:00:03]}  Kd3 {[%clk 0:00:19]} 42. Qa6+ {[%clk 0:00:01]}  Kc3 {[%clk 0:00:15]} 43. Qc4+ {[%clk 0:00:01]}  Kb2 {[%clk 0:00:15]} 44. Qd3 {[%clk 0:00:01]}  Nd2+ {[%clk 0:00:10]} 45. Kg1 {[%clk 0:00:01]}  Nxb3 {[%clk 0:00:09]} 46. Kh1 {[%clk 0:00:00]}  Rc1+ {[%clk 0:00:09]} 0-1

[Event "January 2 Late 2024"]
[Site "https://www.chess.com"]
[Date "2024.01.02"]
[Round "9"]
[White "Korchmar, Vasiliy"]
[Black "Mazurkiewicz, Michal"]
[Result "1-0"]
[Board "75"]
[TimeControl "180+1"]
[WhiteFideId "24131750"]
[BlackFideId "1124943"]
[WhiteElo "2719"]
[BlackElo "2433"]
[WhiteTeam "RUS"]
[BlackTeam "POL"]
[WhiteClock "0:00:33"]
[BlackClock "0:00:03"]

1. e4 {[%clk 0:02:55]}  d6 {[%clk 0:02:59]} 2. d4 {[%clk 0:02:54]}  Nf6 {[%clk 0:02:59]} 3. Nc3 {[%clk 0:02:51]}  c6 {[%clk 0:02:59]} 4. Nf3 {[%clk 0:02:42]}  Bg4 {[%clk 0:02:57]} 5. Bc4 {[%clk 0:02:41]}  e6 {[%clk 0:02:54]} 6. h3 {[%clk 0:02:41]}  Bh5 {[%clk 0:02:53]} 7. g4 {[%clk 0:02:41]}  Bg6 {[%clk 0:02:49]} 8. h4 {[%clk 0:02:41]}  Nxe4 {[%clk 0:02:16]} 9. Nxe4 {[%clk 0:02:26]}  Bxe4 {[%clk 0:02:16]} 10. Bd3 {[%clk 0:02:26]}  Bxd3 {[%clk 0:02:14]} 11. Qxd3 {[%clk 0:02:27]}  Nd7 {[%clk 0:02:09]} 12. Bd2 {[%clk 0:02:27]}  d5 {[%clk 0:02:08]} 13. O-O-O {[%clk 0:02:26]}  Qb6 {[%clk 0:02:07]} 14. h5 {[%clk 0:02:23]}  O-O-O {[%clk 0:02:06]} 15. Ng5 {[%clk 0:02:22]}  Re8 {[%clk 0:00:24]} 16. Nxf7 {[%clk 0:02:21]}  Rg8 {[%clk 0:00:25]} 17. Qxh7 {[%clk 0:02:22]}  Be7 {[%clk 0:00:23]} 18. Qd3 {[%clk 0:02:07]}  Rgf8 {[%clk 0:00:21]} 19. Qg6 {[%clk 0:02:04]}  Qxd4 {[%clk 0:00:15]} 20. Ng5 {[%clk 0:01:06]}  Bf6 {[%clk 0:00:07]} 21. c3 {[%clk 0:01:00]}  Qxf2 {[%clk 0:00:07]} 22. Nh7 {[%clk 0:00:55]}  Rg8 {[%clk 0:00:05]} 23. g5 {[%clk 0:00:55]}  Be5 {[%clk 0:00:04]} 24. Rhf1 {[%clk 0:00:54]}  Qe2 {[%clk 0:00:03]} 25. Rf7 {[%clk 0:00:54]}  Qe4 {[%clk 0:00:03]} 26. Qxe4 {[%clk 0:00:53]}  dxe4 {[%clk 0:00:04]} 27. Be3 {[%clk 0:00:54]}  Nb6 {[%clk 0:00:04]} 28. h6 {[%clk 0:00:36]}  Nd5 {[%clk 0:00:04]} 29. Bxa7 {[%clk 0:00:33]}  gxh6 {[%clk 0:00:04]} 30. gxh6 {[%clk 0:00:34]}  Bf4+ {[%clk 0:00:04]} 31. Kb1 {[%clk 0:00:33]}  Bxh6 {[%clk 0:00:04]} 32. c4 {[%clk 0:00:32]}  Ne3 {[%clk 0:00:03]} 33. Bxe3 {[%clk 0:00:30]}  Bxe3 {[%clk 0:00:04]} 34. Nf6 {[%clk 0:00:31]}  Rgf8 {[%clk 0:00:04]} 35. Nxe8 {[%clk 0:00:31]}  Rxf7 {[%clk 0:00:04]} 36. Nd6+ {[%clk 0:00:32]}  Kc7 {[%clk 0:00:04]} 37. Nxf7 {[%clk 0:00:33]}  Bf4 {[%clk 0:00:05]} 38. Nd8 {[%clk 0:00:30]}  e3 {[%clk 0:00:02]} 39. Nxe6+ {[%clk 0:00:31]}  Kb6 {[%clk 0:00:02]} 40. Nxf4 {[%clk 0:00:31]}  Kc5 {[%clk 0:00:03]} 41. Ne2 {[%clk 0:00:32]}  b5 {[%clk 0:00:02]} 42. Kc2 {[%clk 0:00:33]}  Kb4 {[%clk 0:00:03]} 43. cxb5 {[%clk 0:00:31]}  cxb5 {[%clk 0:00:03]} 44. Rd3 {[%clk 0:00:32]}  Ka4 {[%clk 0:00:03]} 45. Rxe3 {[%clk 0:00:33]}  b4 {[%clk 0:00:04]} 46. Rb3 {[%clk 0:00:33]}  Kb5 {[%clk 0:00:04]} 47. Kd3 {[%clk 0:00:33]}  Ka5 {[%clk 0:00:04]} 48. Kc4 {[%clk 0:00:33]}  Ka6 {[%clk 0:00:03]} 49. Rxb4 {[%clk 0:00:33]} 1-0

[Event "January 2 Late 2024"]
[Site "https://www.chess.com"]
[Date "2024.01.02"]
[Round "9"]
[White "Bochnicka, Vladimir"]
[Black "Blanco Ronquillo, Humberto L."]
[Result "0-1"]
[Board "77"]
[TimeControl "180+1"]
[WhiteFideId "14943450"]
[BlackFideId "3504239"]
[WhiteElo "2483"]
[BlackElo "2685"]
[WhiteTeam "SVK"]
[BlackTeam "CUB"]
[WhiteClock "0:00:58"]
[BlackClock "0:01:43"]

1. e4 {[%clk 0:02:50]}  e5 {[%clk 0:02:58]} 2. Nf3 {[%clk 0:02:46]}  Nc6 {[%clk 0:02:58]} 3. Bc4 {[%clk 0:02:27]}  Nf6 {[%clk 0:02:58]} 4. d3 {[%clk 0:02:16]}  Be7 {[%clk 0:02:57]} 5. O-O {[%clk 0:02:15]}  O-O {[%clk 0:02:57]} 6. Re1 {[%clk 0:02:16]}  d6 {[%clk 0:02:57]} 7. a4 {[%clk 0:02:17]}  Kh8 {[%clk 0:02:56]} 8. a5 {[%clk 0:02:17]}  a6 {[%clk 0:02:56]} 9. c3 {[%clk 0:02:16]}  Ng8 {[%clk 0:02:54]} 10. Nbd2 {[%clk 0:02:15]}  f5 {[%clk 0:02:54]} 11. exf5 {[%clk 0:02:16]}  Bxf5 {[%clk 0:02:54]} 12. h3 {[%clk 0:02:15]}  d5 {[%clk 0:02:40]} 13. Bb3 {[%clk 0:02:15]}  Bxd3 {[%clk 0:02:17]} 14. Nxe5 {[%clk 0:02:15]}  Nxe5 {[%clk 0:02:18]} 15. Rxe5 {[%clk 0:02:14]}  c6 {[%clk 0:02:15]} 16. Bc2 {[%clk 0:02:02]}  Bxc2 {[%clk 0:02:09]} 17. Qxc2 {[%clk 0:02:03]}  Nf6 {[%clk 0:02:05]} 18. Ra4 {[%clk 0:01:58]}  Bc5 {[%clk 0:01:56]} 19. Rh4 {[%clk 0:01:56]}  Bxf2+ {[%clk 0:01:55]} 20. Kxf2 {[%clk 0:01:56]}  Ne4+ {[%clk 0:01:55]} 21. Kg1 {[%clk 0:01:51]}  Qxh4 {[%clk 0:01:55]} 22. Nxe4 {[%clk 0:01:50]}  Qe1+ {[%clk 0:01:43]} 23. Kh2 {[%clk 0:01:50]}  Rf1 {[%clk 0:01:44]} 24. g4 {[%clk 0:00:58]}  Rh1+ {[%clk 0:01:43]} 25. Kg2 {[%clk 0:00:58]}  Qf1+ {[%clk 0:01:43]} 26. Kg3 {[%clk 0:00:58]}  Rxh3# {[%clk 0:01:43]} 0-1